[Event "Romanian Team Blitz Women 2022"]
[Site "Sebes"]
[Date "2022.12.04"]
[Round "2.4"]
[White "Bulmaga, Irina"]
[Black "Peptan, Corina-Isabela"]
[Result "1-0"]
[ECO "B47"]
[WhiteElo "2426"]
[BlackElo "2351"]
[Annotator "TA"]
[PlyCount "55"]
[EventDate "2022.12.04"]
[EventType "blitz"]
[EventCountry "ROU"]
[SourceTitle "playchess.com"]
[Source "ChessBase"]
[SourceQuality "1"]
[TimeControl "180+2"]

{[%evp 9,55,29,39,12,10,17,58,-95,-85,-103,-31,-17,-37,-35,-25,-13,77,66,87,98,96,86,128,67,125,131,441,287,265,280,268,263,404,387,737,728,878,878,862,843,1069,1048,1047,914,5222,5222,5218,2213]} 1. e4 {[%emt 0:00:01]} c5 {[%emt 0:00:01]} 2. Nf3 {[%emt 0:00:02]} e6 {[%emt 0:00:01]} 3. d4 {[%emt 0:00:01]} cxd4 {[%emt 0:00:01]} 4. Nxd4 {[%emt 0:00:01]} Nc6 {[%emt 0:00:00]} 5. Nc3 {[%emt 0:00:01]} Qc7 {[%emt 0:00:01]} 6. g4 {[%emt 0:00:02] B47: Sicilian: Taimanov: 5 Nc3 Qc7 6 f4, 6 g3 and 6 Be2.} a6 {[%emt 0:00:07]} 7. Be3 $1 {[%emt 0:00:02] [#] 7.Be3 is better than 7.h4.} Be7 $146 {[%emt 0:00:08]} ({Predecessor:} 7... Nxd4 8. Qxd4 b5 9. O-O-O Bb7 10. Kb1 Nf6 11. f3 Rc8 12. g5 Nh5 13. Qd2 Be7 14. Bh3 b4 {0-1 (30) Nepomniachtchi,I (2773)-Carlsen,M (2865) chess24.com INT 2022}) 8. f3 $2 {[%emt 0:00:06] [#]} (8. g5 $14 {keeps the upper hand.}) 8... Bh4+ $1 $17 {[%emt 0:00:04]} 9. Ke2 {[%emt 0:00:14]} ({Avoid the trap} 9. Bf2 $2 Bxf2+ 10. Kxf2 Qb6 $19) 9... Nxd4+ {[%emt 0:00:10]} (9... Nge7 $17 {And now ...0-0 would win.} 10. Nxc6 bxc6) 10. Qxd4 $15 {[%emt 0:00:04]} Bf6 {[%emt 0:00:01]} 11. Qb6 {[%emt 0:00:09]} Qxb6 {[%emt 0:00:56]} 12. Bxb6 {[%emt 0:00:02]} Bxc3 {[%emt 0:00:02]} (12... h5 $11 {remains equal.}) 13. bxc3 $16 {[%emt 0:00:01]} d5 {[%emt 0:00:01]} 14. exd5 {[%emt 0:00:18]} exd5 {[%emt 0:00:00]} 15. Kf2 {[%emt 0:00:03]} Ne7 {[%emt 0:00:10]} 16. Bd3 {[%emt 0:00:05]} ({White should play} 16. Re1 $16) 16... Be6 {[%emt 0:00:05]} (16... O-O $14) 17. Rab1 {[%emt 0:00:03] White is more active.} f6 $2 {[%emt 0:00:06][%mdl 8192] This costs Black the game.} (17... Nc6 $16) 18. Bc5 {[%emt 0:00:08] This pair of bishops is nice.} Rc8 {[%emt 0:01:08]} 19. Bxe7 {[%emt 0:00:10]} Kxe7 {[%emt 0:00:01]} 20. Rxb7+ {[%emt 0:00:02]} Kf8 {[%emt 0:00:05]} (20... Bd7 $142 21. c4 (21. Bxa6 Rxc3 22. Bd3 Kd6 $16) 21... Kd6 22. cxd5 Bb5) 21. Re1 $18 {[%emt 0:00:07]} (21. Bxa6 Rd8 22. Bd3 h5 $18) 21... Re8 {[%emt 0:00:16]} (21... Bf7 22. Ree7 Be8 23. Rxg7 h5) 22. Bxa6 {[%emt 0:00:07] [#] Strongly threatening Bb5. White is clearly winning.} Bf7 {[%emt 0:00:12]} 23. Rxe8+ {[%emt 0:00:02]} Bxe8 {[%emt 0:00:00]} 24. Rb8 {[%emt 0:00:04]} h5 {[%emt 0:00:10]} 25. Bb5 {[%emt 0:00:06]} Kf7 {[%emt 0:00:00]} 26. Rxe8 {[%emt 0:00:06]} Rxe8 {[%emt 0:00:02]} 27. Bxe8+ Kxe8 {[%emt 0:00:01]} 28. Ke3 {[%emt 0:00:07] Weighted Error Value: White=0.36/Black=0.66} (28. gxh5 $142 Kd7 29. Kg3) 1-0

[Event "Romanian Team Blitz Women 2022"]
[Site "Sebes"]
[Date "2022.12.04"]
[Round "2.5"]
[White "Ionescu, Irina"]
[Black "Cosma, Elena-Luminita"]
[Result "1-0"]
[ECO "C00"]
[WhiteElo "2119"]
[BlackElo "2244"]
[Annotator "TA"]
[PlyCount "127"]
[EventDate "2022.12.04"]
[EventType "blitz"]
[EventCountry "ROU"]
[SourceTitle "playchess.com"]
[Source "ChessBase"]
[SourceQuality "1"]
[TimeControl "180+2"]

{[%evp 10,126,0,0,8,-12,0,-36,6,-45,-22,-18,-16,-27,-22,-43,-33,-36,-56,-77,-17,-29,9,8,32,31,44,38,112,113,108,108,177,99,77,58,117,127,130,130,175,176,522,506,490,498,580,533,414,345,344,337,352,345,350,315,339,269,320,145,294,255,254,133,183,129,190,64,183,0,62,0,0,-6,0,-689,-689,-689,-687,-680,230,-1224,354,336,346,328,729,740,679,651,667,591,494,0,0,0,0,0,602,591,29978,29979,29982,29983,29983,29948,12791,4133,29988,29989,29993,29992,29997,29996,29998,29998,29998,29999,29999]} 1. e4 {[%emt 0:00:02]} e6 {[%emt 0:00:00]} 2. d3 {[%emt 0:00:01]} d5 {[%emt 0:00:02]} 3. Nd2 {[%emt 0:00:00]} Nf6 {[%emt 0:00:01]} 4. Ngf3 {[%emt 0:00:01]} b6 {[%emt 0:00:02]} 5. c3 {[%emt 0:00:02]} Bb7 {[%emt 0:00:01]} 6. Qa4+ {[%emt 0:00:05]} Qd7 {[%emt 0:00:01] C00: French: Unusual White 2nd moves.} 7. Qc2 {[%emt 0:00:03]} (7. Qxd7+ {simplifies} Nfxd7 8. exd5 exd5 9. Nb3) 7... c5 {[%emt 0:00:01]} 8. Be2 {[%emt 0:00:06]} (8. e5 $5 {[%cal Re5f6]} Ng8 9. d4 $11) 8... Nc6 {[%emt 0:00:01] Black is slightly better.} 9. O-O {[%emt 0:00:01]} (9. e5 $1 $11 Ng4 10. d4) 9... Qc7 {[%emt 0:00:02]} 10. Re1 {[%emt 0:00:03]} Be7 {[%emt 0:00:03]} 11. Bf1 {[%emt 0:00:09] [#]} Rc8 $146 {[%emt 0:00:19]} ({Predecessor (2):} 11... O-O 12. a3 a5 13. a4 Ba6 14. Nb1 Rfd8 15. Na3 Rac8 16. Nb5 Qb8 17. Bg5 h6 18. Bh4 e5 19. Rad1 d4 20. Nd2 {1-0 (45) Popov,R (2388)-Libiszewski,F (2458) Playchess.com INT 2003}) 12. Qa4 {[%emt 0:00:27]} O-O {[%emt 0:00:20]} 13. e5 {[%emt 0:00:15]} Nd7 {[%emt 0:00:01]} 14. d4 {[%emt 0:00:07]} cxd4 {[%emt 0:00:13]} (14... f6 $17 {[%cal Rf6e5]} 15. exf6 Rxf6) 15. cxd4 $11 {[%emt 0:00:07]} Na5 {[%emt 0:00:01]} (15... Nb4 $5 {[%cal Rb4c2]} 16. Re3 Nc2 $15) 16. Bd3 {[%emt 0:00:08]} a6 {[%emt 0:00:11]} 17. Qd1 {[%emt 0:00:13]} b5 {[%emt 0:00:06]} 18. h4 {[%emt 0:00:06]} Rfd8 {[%emt 0:00:14]} (18... Nc6 $14) 19. Ng5 $16 {[%emt 0:00:05]} Bxg5 {[%emt 0:00:07]} 20. hxg5 {[%emt 0:00:02]} Nf8 {[%emt 0:00:02]} (20... Qb6 $16) 21. Nf3 {[%emt 0:00:05]} (21. Re3 $1 $18) 21... Nc6 {[%emt 0:00:04]} 22. Be3 {[%emt 0:00:06]} Ne7 {[%emt 0:00:09]} (22... Nb4 $14) 23. Nh2 {[%emt 0:00:05][%cal Bf3h2,Bh2g4,Bg4f6][%mdl 32] White is more active.} Nf5 {[%emt 0:00:12]} 24. Qh5 $1 {[%emt 0:00:09]} Bc6 {[%emt 0:00:15] [#]} 25. Ng4 $1 {[%emt 0:00:01][%cal Og4f6] Hoping for Nf6+!} g6 $2 {[%emt 0:00:52]} (25... Kh8 {is tougher.}) 26. Nf6+ $18 {[%emt 0:00:06]} Kg7 {[%emt 0:00:16]} 27. Qh3 {[%emt 0:00:04]} h5 {[%emt 0:00:02]} 28. gxh6+ {[%emt 0:00:26]} Kh8 {[%emt 0:00:02]} 29. g4 {[%emt 0:00:20]} Nxe3 {[%emt 0:00:04]} 30. Qxe3 {[%emt 0:00:01]} (30. Rxe3 Nh7 $18) 30... Nh7 {[%emt 0:00:02]} 31. Qf4 {[%emt 0:00:06]} Qe7 {[%emt 0:00:04]} 32. Kg2 {[%emt 0:00:06]} Be8 {[%emt 0:00:04]} 33. Rh1 {[%emt 0:00:09]} a5 {[%emt 0:00:02]} 34. Qd2 {[%emt 0:00:14]} (34. Rhc1 $18) 34... b4 {[%emt 0:00:02]} (34... Nxf6 $16 {is a better defense.} 35. exf6 Qxf6) 35. Nxh7 {[%emt 0:00:02]} Kxh7 {[%emt 0:00:01]} 36. f4 {[%emt 0:00:02]} (36. Rac1 $18) 36... Rc4 {[%emt 0:00:04]} (36... Bd7 $16 37. Rag1 Rb8) 37. b3 {[%emt 0:00:02]} ({White should play} 37. Qe3 $18) 37... Rc7 {[%emt 0:00:04]} (37... Rc3 $16) 38. Raf1 {[%emt 0:00:03]} ({Better is} 38. Rac1 $18) 38... Rc3 {[%emt 0:00:04]} (38... Rdc8 $1 $14) 39. Kg1 $2 {[%emt 0:00:04]} (39. f5 $18) 39... Bd7 {[%emt 0:00:02]} (39... Rdc8 $11) 40. f5 {[%emt 0:00:02]} (40. Rh2 $14) 40... exf5 {[%emt 0:00:01]} 41. gxf5 {[%emt 0:00:01]} gxf5 {[%emt 0:00:02]} 42. Bxf5+ $2 {[%emt 0:00:03][%mdl 8192]} (42. Qg2 $2 Rg8 $19) (42. Rh2 $11) 42... Bxf5 $19 {[%emt 0:00:02]} 43. Rxf5 {[%emt 0:00:01]} Rg8+ {[%emt 0:00:01]} 44. Kf1 {[%emt 0:00:00] Threatens to win with Qf4.} Rcc8 $4 {[%emt 0:00:05][%mdl 8192]} (44... f6 $19 45. Rh2 (45. exf6 Qe4 46. Rg5 Rf3+) (45. Rxf6 $2 Qc7 $19) 45... Qc7 46. Rxf6 (46. exf6 Rc1+) 46... Rc1+ 47. Ke2 Qc2) 45. Qf2 $4 {[%emt 0:00:03][%mdl 8192]} (45. Qf4 $18 Kh8 46. Rxf7) 45... Rcf8 $4 {[%emt 0:00:01][%mdl 8192]} (45... Rc1+ $19 46. Ke2 Rc2+ 47. Kd1 Rxf2 48. Rxf2 Rg4) 46. Rg1 $18 {[%emt 0:00:03]} Rxg1+ {[%emt 0:00:02]} 47. Qxg1 {[%emt 0:00:01][%csl Gh6][%cal Rg1g7][%mdl 4096] Endgame KQR-KQR} Rg8 {[%emt 0:00:01] Prevents Qg7+.} (47... f6 48. Qf2 Qe6 49. Rxf6 (49. exf6 Qa6+ 50. Qe2 Rxf6 $18) 49... Rxf6 50. exf6 Qh3+ 51. Ke2 Qh5+ 52. Qf3 Qh2+ 53. Kd3 Qxa2 54. Qxd5 Qb1+ 55. Kc4 Qf1+ 56. Kc5 Qxf6) 48. Qf2 {[%emt 0:00:01]} Rf8 {[%emt 0:00:02]} 49. Rf6 {[%emt 0:00:00][%cal Oe5e6] White threatens e6! and mate.} Qc7 {[%emt 0:00:02]} 50. Qf5+ {[%emt 0:00:03]} Kh8 {[%emt 0:00:01] [#]} 51. Qf4 $40 {[%emt 0:00:01][%mdl 128] Inhibits Qc1+. Black needs to defend precisely.} (51. Ke2 $1 $18 {Ra6 is the strong threat.} Qc1 52. Rxf7 Qb2+ 53. Kf3 (53. Ke3 Qc3+ 54. Ke2 Qb2+ 55. Kf3 Qc3+ 56. Kg4 Qxd4+ 57. Qf4 Qg1+ 58. Kh5 Rxf7 $18) 53... Qc3+ 54. Kg4 Qxd4+ 55. Qf4 Qg1+ 56. Kh5 Rxf7 57. Qxf7 Qh1+ 58. Kg6 Qg2+ 59. Kf6 Qf2+ 60. Ke6 Qb6+ 61. Ke7 Qc5+ 62. Kd8 Qb6+ 63. Kc8 Qxh6 64. e6) 51... Qc2 $11 {[%emt 0:00:03]} 52. Rxf7 {[%emt 0:00:02] Threatening mate with Qf6+.} Rxf7 {[%emt 0:00:01]} 53. Qxf7 {[%emt 0:00:01][%csl Gh6][%cal Rf7g7] KQ-KQ. Really sharp!} Qc1+ $2 {[%emt 0:00:02][%mdl 8192]} (53... Qd1+ $11 54. Kf2 (54. Kg2 Qg4+ 55. Kh2 Qh4+ 56. Kg2 Qg4+ 57. Kh2 Qh4+ 58. Kg2 Qg4+ $11) 54... Qxd4+ 55. Kg2 Qxe5) 54. Kf2 {[%emt 0:00:01][%csl Gh6][%cal Rf7g7]} Qd2+ {[%emt 0:00:02]} 55. Kf3 {[%emt 0:00:01][%csl Gh6][%cal Rf7g7]} Qd3+ {[%emt 0:00:02]} 56. Kg4 {[%emt 0:00:01][%csl Gh6][%cal Rf7g7]} Qxd4+ {[%emt 0:00:01]} 57. Kf5 {[%emt 0:00:01][%csl Gh6][%cal Rf7g7]} Qf2+ {[%emt 0:00:01]} 58. Ke6 {[%emt 0:00:02][%csl Gh6][%cal Rf7g7]} Qxf7+ {[%emt 0:00:04]} 59. Kxf7 $18 {[%emt 0:00:01] KP-KP. White mates.} d4 {[%emt 0:00:00]} 60. e6 {[%emt 0:00:00]} d3 {[%emt 0:00:01]} 61. e7 {[%emt 0:00:01]} d2 {[%emt 0:00:04]} 62. e8=Q+ {[%emt 0:00:02]} Kh7 {[%emt 0:00:01]} 63. Qg8+ {[%emt 0:00:01]} Kxh6 {[%emt 0:00:01]} 64. Qg6# {[%emt 0:00:01] Weighted Error Value: White=0.60/Black=0.78} 1-0

[Event "Romanian Team Blitz Women 2022"]
[Site "Sebes"]
[Date "2022.12.04"]
[Round "2.6"]
[White "Ciolacu, Alessia-Mihaela"]
[Black "Schiopu, Andreea-Alexandra"]
[Result "1-0"]
[ECO "D10"]
[WhiteElo "2097"]
[BlackElo "1716"]
[Annotator "TA"]
[PlyCount "137"]
[EventDate "2022.12.04"]
[EventType "blitz"]
[EventCountry "ROU"]
[SourceTitle "playchess.com"]
[Source "ChessBase"]
[SourceQuality "1"]
[TimeControl "180+2"]

{[%evp 9,137,0,28,31,27,22,58,63,94,93,101,103,118,-63,-72,-64,-61,-70,59,68,75,35,44,31,35,25,93,93,139,72,68,65,54,40,62,62,62,59,59,50,68,73,201,193,185,181,245,177,218,232,224,193,251,54,180,145,139,86,88,93,79,24,206,192,208,210,209,106,151,54,54,0,168,0,58,62,55,12,12,0,8,8,8,8,8,8,8,8,8,8,8,8,8,8,8,8,8,8,8,8,8,8,8,8,8,8,8,0,8,8,8,0,8,0,8,8,8,8,8,8,8,8,8,8,8,8,8,8,8,0]} 1. d4 {[%emt 0:00:02]} d5 {[%emt 0:00:01]} 2. c4 {[%emt 0:00:02]} c6 {[%emt 0:00:01]} 3. cxd5 {[%emt 0:00:03]} cxd5 {[%emt 0:00:01]} 4. Bg5 {[%emt 0:00:02]} Nc6 {[%emt 0:00:05]} 5. Nc3 {[%emt 0:00:02]} Nf6 {[%emt 0:00:10]} 6. Bxf6 {[%emt 0:00:03] D10: Slav Defence: 3 cxd5 (without early Nf3) and 3 Nc3.} gxf6 {[%emt 0:00:04]} 7. e3 {[%emt 0:00:03]} Bf5 {[%emt 0:00:04]} 8. Qb3 {[%emt 0:00:03][%csl LRb7,LRd5] White is slightly better.} Rb8 {[%emt 0:01:19]} 9. Qxd5 {[%emt 0:00:19]} Qxd5 {[%emt 0:00:11]} 10. Nxd5 {[%emt 0:00:01]} Bh6 {[%emt 0:00:13] [#]} 11. Bb5 $146 {[%emt 0:00:19]} (11. Nf3 $16) ({Predecessor:} 11. Be2 O-O 12. Bf3 Rbc8 13. Ne2 Rfd8 14. O-O Kg7 15. Rac1 Bd3 16. Ndc3 b6 17. Rfd1 Bg6 18. Nb5 Nb4 19. Nxa7 Rxc1 20. Nxc1 {1-0 (20) Neininger,R (2069)-Deutsch,C (1788) Heusenstamm 2017}) 11... Be4 $1 $15 {[%emt 0:00:07][%csl LRd5,LRg2][%cal Oe4g2]} 12. Nc7+ {[%emt 0:00:22]} Kd7 {[%emt 0:00:02][%cal Oe4g2]} 13. f3 $1 {[%emt 0:00:07]} Bxf3 {[%emt 0:00:08]} ({Black should try} 13... Kxc7 $15 14. fxe4 Bxe3) 14. Nxf3 $14 {[%emt 0:00:08] And now Nd5 would win.} Kxc7 {[%emt 0:00:01]} 15. Kf2 {[%emt 0:00:16]} a6 {[%emt 0:00:17]} 16. Bc4 {[%emt 0:00:01]} e6 {[%emt 0:00:01]} 17. Rac1 {[%emt 0:00:03]} Kd7 {[%emt 0:00:05]} (17... Kd6 $11 {remains equal.}) 18. d5 $16 {[%emt 0:00:13]} Na5 {[%emt 0:00:23]} (18... exd5 $142 19. Bxd5 Rhd8) 19. dxe6+ {[%emt 0:00:09]} ({Better is} 19. Be2 {Black must now prevent b4.} exd5 20. Rhd1) 19... fxe6 {[%emt 0:00:02]} 20. Rhd1+ {[%emt 0:00:03]} Ke7 {[%emt 0:00:07]} 21. Be2 {[%emt 0:00:04] aiming for Rc7+.} Nc6 {[%emt 0:00:02] [#]} 22. Bxa6 $1 {[%emt 0:00:06] White is more active.} bxa6 {[%emt 0:00:08]} 23. Rxc6 {[%emt 0:00:02]} Rxb2+ {[%emt 0:00:01]} 24. Rd2 {[%emt 0:00:00]} Rxd2+ {[%emt 0:00:01]} 25. Nxd2 $14 {[%emt 0:01:19][%cal Od2e4][%mdl 4096] Endgame KRB-KRN} Kd7 (25... Rd8 $16 26. Nc4 f5) 26. Rxa6 $18 {[%emt 0:00:00] Strongly threatening Ne4.} Rc8 {[%emt 0:00:02]} 27. Ra7+ {[%emt 0:00:00]} Kd6 {[%emt 0:00:05]} (27... Kd8 {was worth a try.} 28. Ne4 (28. Rxh7 Bf8 $16) 28... f5) 28. Rxh7 {[%emt 0:00:00]} Rc2 {[%emt 0:00:08]} 29. Ke2 {[%emt 0:00:00]} Bf8 {[%emt 0:00:03]} 30. a3 {[%emt 0:00:00]} Kd5 {[%emt 0:00:05]} (30... e5 $142 31. Kd3 Ra2 32. Nc4+ Kd5) 31. a4 $2 {[%emt 0:00:00]} (31. Rd7+ $18 Kc6 32. Rf7 Bxa3 33. Kd3 (33. Rxf6 Bb4 $11)) 31... Bc5 {[%emt 0:00:01]} (31... Ra2 $14) 32. Kd3 {[%emt 0:00:00]} Ra2 {[%emt 0:00:01]} 33. e4+ {[%emt 0:00:00]} (33. Ne4 $142 $1 {[%cal Re4c3]} Ra3+ 34. Nc3+ Kc6 35. Rh4) 33... Kc6 $16 {[%emt 0:00:02]} 34. Rf7 {[%emt 0:00:00]} Ra3+ {[%emt 0:00:03]} 35. Ke2 {[%emt 0:00:00]} (35. Kc2 $1 $16) 35... Bd4 {[%emt 0:00:03]} (35... Ra2 $1 $11) 36. h4 $1 $18 {[%emt 0:00:00][%cal Bh2h4,Bh4h5][%mdl 32] Hoping for h5.} Rxa4 {[%emt 0:00:07]} 37. h5 {[%emt 0:00:01]} Ra2 {[%emt 0:00:00] [#]} 38. Kd3 {[%emt 0:00:01] Inhibits Bc3.} (38. Rf8 $1 $18) 38... Be5 $16 {[%emt 0:00:00]} 39. Re7 {[%emt 0:00:05]} (39. Nc4 $16 {Nxe5+ is the strong threat.} Rxg2 40. Nxe5+ fxe5 41. h6) 39... Bf4 $14 {[%emt 0:00:00]} 40. Nc4 {[%emt 0:00:05]} ({But not} 40. Rxe6+ Kd7 41. Rxf6 Rxd2+ 42. Kc3 Be5+ 43. Kxd2 Bxf6 $11) ({White should play} 40. Nf3 $1 $14 Kd6 41. Rf7) 40... e5 $2 {[%emt 0:00:02] [#]} (40... Rxg2 $11 41. Rxe6+ Kc5) 41. Re6+ $2 {[%emt 0:00:02]} (41. Rg7 $1 $18) 41... Kd7 {[%emt 0:00:01]} (41... Kc5 $11) 42. Rxf6 {[%emt 0:00:02]} Rxg2 {[%emt 0:00:02]} 43. h6 {[%emt 0:00:06]} (43. Nb6+ {simplifies} Ke8 44. Rf5 Rg3+ 45. Kc4) 43... Rh2 {[%emt 0:00:02] Inhibits h7. The position is equal.} 44. Kc3 {[%emt 0:00:04]} (44. Ra6 {simplifies} Rxh6 45. Nxe5+ Ke7 46. Ra7+) 44... Rxh6 {[%emt 0:00:02]} 45. Rxh6 {[%emt 0:00:02]} Bxh6 {[%emt 0:00:01]} 46. Nxe5+ $11 {[%emt 0:00:01] KB-KN} Ke6 {[%emt 0:00:10]} 47. Nf3 {[%emt 0:00:00]} Bg7+ {[%emt 0:00:00]} 48. Kc4 {[%emt 0:00:00]} Ba1 {[%emt 0:00:00]} 49. Kd3 {[%emt 0:00:00]} Bh8 {[%emt 0:00:00]} 50. Ke3 {[%emt 0:00:00]} Ke7 {[%emt 0:00:00]} 51. Kf4 {[%emt 0:00:00]} Ke6 {[%emt 0:00:02]} 52. Nh4 {[%emt 0:00:00]} Kf6 {[%emt 0:00:06]} 53. Nf5 {[%emt 0:00:00]} Ke6 {[%emt 0:00:02]} 54. Nh6 {[%emt 0:00:00]} Bg7 {[%emt 0:00:01]} 55. Ng4 {[%emt 0:00:00]} Bh8 {[%emt 0:00:01]} 56. Kg5 {[%emt 0:00:00]} Bg7 {[%emt 0:00:03]} 57. Kg6 {[%emt 0:00:00]} Bd4 {[%emt 0:00:01]} 58. Kg5 {[%emt 0:00:00]} Bh8 {[%emt 0:00:02]} 59. Kf4 {[%emt 0:00:00]} Bd4 {[%emt 0:00:02]} 60. Nh6 {[%emt 0:00:00]} Bc3 {[%emt 0:00:03]} 61. Ng4 {[%emt 0:00:00]} Bg7 {[%emt 0:00:02]} 62. Nf2 {[%emt 0:00:00]} Bd4 {[%emt 0:00:01]} 63. Nd3 {[%emt 0:00:01]} Bh8 {[%emt 0:00:02]} 64. Nc5+ {[%emt 0:00:02]} Ke7 {[%emt 0:00:02]} 65. Kf5 {[%emt 0:00:01]} Bd4 {[%emt 0:00:02]} 66. Nd3 {[%emt 0:00:02]} Bg7 {[%emt 0:00:01]} 67. Nf4 {[%emt 0:00:03]} Bd4 {[%emt 0:00:04]} 68. Ng6+ {[%emt 0:00:02]} Kf7 {[%emt 0:00:01]} 69. Ne5+ {[%emt 0:00:44][%mdl 32768] Weighted Error Value: White=0.31/Black=0.29 (precise) . Loss on time!?} 1-0

[Event "Romanian Team Blitz Women 2022"]
[Site "Sebes"]
[Date "2022.12.04"]
[Round "3.1"]
[White "Peptan, Corina-Isabela"]
[Black "Voicu-Jagodzinsky, Carmen"]
[Result "1-0"]
[ECO "D37"]
[WhiteElo "2351"]
[BlackElo "2300"]
[Annotator "TA"]
[PlyCount "113"]
[EventDate "2022.12.04"]
[EventType "blitz"]
[EventCountry "ROU"]
[SourceTitle "playchess.com"]
[Source "ChessBase"]
[SourceQuality "1"]
[TimeControl "180+2"]

{[%evp 11,113,21,25,0,52,47,60,19,20,19,22,23,16,21,20,16,10,15,22,0,0,0,0,0,0,0,37,33,47,46,48,21,39,28,171,37,60,66,114,108,154,127,177,175,167,125,139,129,202,194,197,213,194,172,165,172,208,-284,-291,-279,-286,-310,-305,-293,-277,-591,-308,-200,-65,-60,-37,-38,29986,0,794,782,6603,767,6436,6223,5402,4699,29976,29977,6026,829,794,793,1308,1147,3309,3227,29974,29976,29972,29973,29985,29986,29986,29987,29987,29988,29988,29989]} 1. d4 {[%emt 0:00:02]} d5 {[%emt 0:00:03]} 2. Nf3 {[%emt 0:00:02]} e6 {[%emt 0:00:01]} 3. c4 {[%emt 0:00:01]} Nf6 {[%emt 0:00:01]} 4. Nc3 {[%emt 0:00:02]} Be7 {[%emt 0:00:02]} 5. Bf4 {[%emt 0:00:02]} O-O {[%emt 0:00:04]} 6. e3 {[%emt 0:00:01]} a6 {[%emt 0:00:11]} 7. h3 {[%emt 0:00:02] D37: Queen's Gambit Declined: 5 Bf4.} h6 {[%emt 0:00:18]} (7... dxc4 $11 8. Bxc4 b5) 8. c5 $14 {[%emt 0:00:13]} b6 {[%emt 0:00:06] [#]} 9. cxb6 $146 {[%emt 0:00:13] White is slightly better.} ({Predecessor:} 9. b4 Nc6 10. a3 Bb7 11. Be2 Nd7 12. O-O Bf6 13. Rc1 Re8 14. cxb6 cxb6 15. b5 axb5 16. Nxb5 {0-1 (48) Panda,G (1620)-Bankos,H (1781) Hungary 2019}) 9... cxb6 {[%emt 0:00:16]} 10. Bd3 {[%emt 0:00:01]} Bb7 {[%emt 0:00:23]} 11. Rc1 {[%emt 0:00:05]} Nc6 {[%emt 0:00:05]} 12. O-O {[%emt 0:00:05]} Bd6 {[%emt 0:00:08]} 13. Na4 {[%emt 0:00:40] next Bxd6 is good for White.} Bxf4 {[%emt 0:00:09]} 14. exf4 {[%emt 0:00:01]} Ne4 {[%emt 0:00:17]} 15. Qb3 {[%emt 0:00:16]} b5 {[%emt 0:00:33]} 16. Nc5 {[%emt 0:00:07]} Nxc5 {[%emt 0:00:20]} 17. dxc5 {[%emt 0:00:09]} Qf6 {[%emt 0:00:11]} 18. g3 {[%emt 0:00:03]} Bc8 {[%emt 0:00:11]} 19. Rfe1 {[%emt 0:00:04]} Bd7 {[%emt 0:00:02]} 20. Ne5 {[%emt 0:00:04]} Rfd8 {[%emt 0:00:01]} 21. Bf1 {[%emt 0:00:21]} Rac8 {[%emt 0:00:02]} (21... Nxe5 {simplifies} 22. fxe5 Qe7 23. Red1 Bc6) 22. Qa3 {[%emt 0:00:18]} Ra8 {[%emt 0:00:01] [#]} (22... Nxe5 $11 23. fxe5 Qe7) 23. Qc3 {[%emt 0:00:06]} (23. Nxd7 $1 $18 Rxd7 24. Bxb5) 23... Rac8 {[%emt 0:00:12]} 24. b4 {[%emt 0:00:01]} d4 {[%emt 0:00:05]} (24... g5 $14) 25. Qd2 $16 {[%emt 0:00:05] White is more active.} Be8 {[%emt 0:00:01]} ({Black should play} 25... Nxe5 26. fxe5 Qf5) 26. Bg2 {[%emt 0:00:05]} Ne7 {[%emt 0:00:01]} (26... Nxe5 $16 {was necessary.} 27. fxe5 Qg5) 27. Re4 $18 {[%emt 0:00:06]} Nf5 {[%emt 0:00:00]} 28. g4 {[%emt 0:00:04]} Nh4 {[%emt 0:00:01]} 29. Rxd4 {[%emt 0:00:01]} Nxg2 {[%emt 0:00:02]} (29... Rxd4 $16 30. Qxd4 Ng6) 30. Kxg2 {[%emt 0:00:03]} Rxd4 {[%emt 0:00:01]} 31. Qxd4 {[%emt 0:00:02]} Rd8 {[%emt 0:00:00]} 32. Qe3 {[%emt 0:00:07]} Qe7 {[%emt 0:00:01]} 33. a3 {[%emt 0:00:04]} Qc7 {[%emt 0:00:02]} 34. Qf3 $4 {[%emt 0:00:05][%mdl 8192]} (34. g5 $18) 34... f6 $19 {[%emt 0:00:00]} 35. Qb3 {[%emt 0:00:24]} ({But not} 35. Nd3 $2 Bc6 36. Ne1 Bxf3+ $19) 35... fxe5 {[%emt 0:00:02]} 36. Qxe6+ {[%emt 0:00:02]} Bf7 {[%emt 0:00:01]} 37. Qxe5 {[%emt 0:00:01]} Qc6+ {[%emt 0:00:00]} 38. Kg1 $2 {[%emt 0:00:03]} (38. Kh2 Rd3 39. Rc3) 38... Re8 {[%emt 0:00:01]} 39. Qd4 {[%emt 0:00:01]} Bd5 {[%emt 0:00:02]} (39... Qf3 $19 {Threatens to win with ...Bd5.} 40. Qc3 Qxf4) 40. Kh2 $15 {[%emt 0:00:07]} Re4 {[%emt 0:00:03]} (40... Qa8 $5 {[%cal Rd5c4]}) 41. Qd2 {[%emt 0:00:02]} Qc7 $2 {[%emt 0:00:01][%mdl 8192] [#] White leaves nothing to chance now.} 42. Kg3 $2 {[%emt 0:00:01]} (42. Qxd5+ {mates} Kh8 43. Qxe4 Kg8 44. Qe8+ Kh7 45. Kg3 a5 46. Re1 axb4 47. g5) 42... Qe7 $2 {[%emt 0:00:02][%mdl 8192]} 43. Qxd5+ $18 {[%emt 0:00:01][%mdl 4096] Endgame KQR-KQR} Kh8 {[%emt 0:00:04]} 44. Rd1 {[%emt 0:00:02]} Kh7 {[%emt 0:00:03]} 45. Qf5+ {[%emt 0:00:00]} g6 {[%emt 0:00:03]} 46. Qd7 {[%emt 0:00:02] Threatening mate with c6.} Qxd7 {[%emt 0:00:04]} 47. Rxd7+ {[%emt 0:00:00] KR-KR} Kg8 {[%emt 0:00:00]} 48. Ra7 {[%emt 0:00:01] Black must now prevent c6.} Re6 {[%emt 0:00:04]} 49. Rc7 {[%emt 0:00:01] Hoping for f5.} Kf8 {[%emt 0:00:02]} 50. c6 {[%emt 0:00:01] aiming for f5.} Ke8 {[%emt 0:00:01]} 51. f5 gxf5 {[%emt 0:00:01]} 52. gxf5 {[%emt 0:00:01][%cal Bg4f5,Bf5f6][%mdl 32] White mates.} Rd6 {[%emt 0:00:03]} 53. Kf4 {[%emt 0:00:01]} Kd8 {[%emt 0:00:01]} 54. Rd7+ {[%emt 0:00:02]} Rxd7 {[%emt 0:00:00]} 55. cxd7 {[%emt 0:00:01]} Kxd7 {[%emt 0:00:01]} 56. Ke5 {[%emt 0:00:01]} Ke7 {[%emt 0:00:01]} 57. f6+ {[%emt 0:00:00] Weighted Error Value: White=0.54/Black=0.70} 1-0